fUST/lending_fUST_20250808
["ID","MTS","AMOUNT","RATE_DAILY","PERIOD"]
[378004576,1754664653556,-2772.79923493,0.00031045,2]
[378004577,1754664653566,-1100.0,0.00031062,7]
[378004578,1754664653576,-2426.19,0.00031064,15]
[378004579,1754664653586,-499.3,0.00031077,7]
[378004580,1754664653595,-168.0,0.00031083,2]
[378004581,1754664653605,-152.179415,0.00031084,10]
[378004582,1754664653615,-1500.0,0.0003109,7]
[378004583,1754664653625,-152.179415,0.000311,15]
[378004584,1754664653635,-1100.0,0.00031108,7]
[378004585,1754664653645,-800.0,0.00031115,2]
[378004586,1754664653752,-700.0,0.00031121,7]
[378004587,1754664653763,-2772.79923493,0.00031145,2]
[378004588,1754664653772,-800.0,0.00031161,2]
[378004589,1754664653782,-2426.19,0.00031164,15]
[378004590,1754664653791,-152.179415,0.00031166,30]
[378004591,1754664653800,-700.0,0.00031171,7]
[378004592,1754664653809,-800.0,0.00031173,2]
[378004593,1754664653819,-894.0,0.000312,5]
[378004594,1754664653828,-1357268.586025,0.000312,2]
[378004595,1754664653837,-2419.95493,0.000312,7]
[378004596,1754664653847,-700.0,0.00031201,7]
[378004597,1754664653856,-1100.0,0.00031214,7]
[378004598,1754664653865,-500.0,0.0003123,5]
[378004599,1754664653875,-500.0,0.00031232,5]
[378004600,1754664653884,-2426.41393352,0.00031264,15]
[378004601,1754664653894,-1100.0,0.0003127,7]
[378004602,1754664653903,-1100.0,0.00031293,7]
[378004603,1754664653912,-700.0,0.00031314,7]
[378004604,1754664653922,-152.179415,0.00031324,6]
[378004605,1754664653931,-1100.0,0.0003133,7]
[378004606,1754664653940,-1100.0,0.00031333,7]
[378004607,1754664653950,-152.179415,0.0003135,5]
[378004608,1754664653959,-1100.0,0.00031357,7]
[378004609,1754664653969,-1260.0,0.00031361,2]
[378004610,1754664653978,-2400.11,0.00031375,15]
[378004611,1754664653988,-723.61878469,0.00031382,7]
[378004612,1754664653997,-642.49314909,0.0003141,2]
[378004613,1754664654007,-152.179415,0.00031416,6]
[378004614,1754664654017,-500.0,0.00031427,7]
[378004615,1754664654027,-4000.0,0.00031429,4]
[378004616,1754664654036,-500.0,0.00031432,7]
[378004617,1754664654046,-1100.0,0.00031454,7]
[378004618,1754664654055,-206.0,0.0003147,30]
[378004619,1754664654064,-700.0,0.00031474,7]
[378004620,1754664654073,-2400.11,0.00031475,15]
[378004621,1754664654083,-500.0,0.00031476,2]
[378004622,1754664654092,-500.0,0.00031476,2]
[378004623,1754664654101,-500.0,0.00031476,2]
[378004624,1754664654111,-1674.40968,0.0003148,6]
[378004625,1754664654120,-700.0,0.00031492,7]
[378004626,1754664654129,-1000.0,0.000315,6]
[378004627,1754664654138,-152.179415,0.00031508,6]
[378004628,1754664654147,-1000.0,0.0003152,6]
[378004629,1754664654157,-1100.0,0.00031531,7]
[378004630,1754664654166,-500.0,0.00031533,7]
[378004631,1754664654176,-700.0,0.00031538,7]
[378004632,1754664654185,-800.0,0.0003154,2]
[378004633,1754664654195,-1000.0,0.0003154,6]
[378004634,1754664654204,-1100.0,0.00031559,7]
[378004635,1754664654213,-1000.0,0.0003156,6]
[378004636,1754664654223,-770.01998714,0.00031567,5]
[378004637,1754664654233,-2400.11,0.00031575,15]
[378004638,1754664654242,-1000.0,0.0003158,6]
[378004639,1754664654252,-716.78023212,0.00031584,2]
[378004640,1754664654261,-3022.63273535,0.00031584,2]
[378004641,1754664654271,-1100.0,0.00031599,7]
[378004642,1754664654285,-152.179415,0.000316,6]
[378004643,1754664654296,-1000.0,0.000316,6]
[378004644,1754664654305,-1000.0,0.0003162,6]
[378004645,1754664654314,-1100.0,0.00031622,7]
[378004646,1754664654324,-1000.0,0.0003164,6]
[378004647,1754664654333,-200.0,0.0003165,30]
[378004648,1754664654343,-1000.0,0.0003166,6]
[378004649,1754664654354,-800.0,0.00031673,2]
[378004650,1754664654363,-2400.11,0.00031675,15]
[378004651,1754664654373,-500.0,0.00031676,10]
[378004652,1754664654381,-500.0,0.00031676,15]
[378004653,1754664654391,-500.0,0.00031676,2]
[378004654,1754664654403,-500.0,0.00031676,30]
[378004655,1754664654411,-500.0,0.00031676,15]
[378004656,1754664654420,-500.0,0.00031676,15]
[378004657,1754664654429,-500.0,0.00031676,30]
[378004658,1754664654439,-500.0,0.00031676,2]
[378004659,1754664654448,-500.0,0.00031676,10]
[378004660,1754664654457,-500.0,0.00031676,10]
[378004661,1754664654467,-500.0,0.00031676,7]
[378004662,1754664654479,-500.0,0.00031676,15]
[378004663,1754664654488,-500.0,0.00031676,30]
[378004664,1754664654498,-500.0,0.00031676,15]
[378004665,1754664654508,-500.0,0.00031676,30]
[378004666,1754664654517,-500.0,0.00031676,10]
[378004667,1754664654527,-500.0,0.00031676,30]
[378004668,1754664654536,-500.0,0.00031676,2]
[378004669,1754664654545,-500.0,0.00031676,15]
[378004670,1754664654554,-500.0,0.00031676,30]
[378004671,1754664654564,-500.0,0.00031676,30]
[378004672,1754664654573,-500.0,0.00031676,2]
[378004673,1754664654583,-500.0,0.00031676,2]
[378004674,1754664654592,-500.0,0.00031676,7]
[378004675,1754664654601,-500.0,0.00031676,2]
[378004676,1754664654611,-500.0,0.00031676,15]
[378004677,1754664654621,-500.0,0.00031676,30]
[378004678,1754664654630,-500.0,0.00031676,10]
[378004679,1754664654639,-500.0,0.00031676,15]
[378004680,1754664654648,-500.0,0.00031676,2]
[378004681,1754664654658,-500.0,0.00031676,2]
[378004682,1754664654666,-500.0,0.00031676,30]
[378004683,1754664654675,-500.0,0.00031676,7]
[378004684,1754664654684,-500.0,0.00031676,10]
[378004685,1754664654694,-500.0,0.00031676,7]
[378004686,1754664654703,-500.0,0.00031676,2]
[378004687,1754664654712,-500.0,0.00031676,15]
[378004688,1754664654721,-500.0,0.00031676,2]
[378004689,1754664654732,-500.0,0.00031676,10]
[378004690,1754664654741,-500.0,0.00031676,10]
[378004691,1754664654751,-500.0,0.00031676,30]
[378004692,1754664654760,-500.0,0.00031676,2]
[378004693,1754664654769,-500.0,0.00031676,15]
[378004694,1754664654778,-500.0,0.00031676,2]
[378004695,1754664654788,-500.0,0.00031676,7]
[378004696,1754664654797,-500.0,0.00031676,7]
[378004697,1754664654806,-500.0,0.00031676,2]
[378004698,1754664654816,-240.81,0.00031676,7]
[378004699,1754664654825,-5000.0,0.00031677,3]
[378004700,1754664654834,-180.0,0.0003168,120]
[378004701,1754664654844,-1000.0,0.0003168,6]
[378004702,1754664654853,-1136.526772,0.0003168,6]
[378004703,1754664654862,-2186.0,0.00031683,120]
[378004704,1754664654871,-325.0,0.00031683,7]
[378004705,1754664654880,-325.0,0.00031683,7]
[378004706,1754664654889,-325.0,0.00031683,7]
[378004707,1754664654900,-325.0,0.00031683,7]
[378004708,1754664654909,-325.0,0.00031683,7]
[378004709,1754664654918,-447.19205509,0.00031683,7]
[378004710,1754664654927,-197.29735742,0.00031683,30]
[378004711,1754664654936,-1759.0,0.00031683,7]
[378004712,1754664654946,-1759.0,0.00031683,7]
[378004713,1754664654956,-1759.0,0.00031683,7]
[378004714,1754664654966,-1759.0,0.00031683,7]
[378004715,1754664654976,-1759.0,0.00031683,7]
[378004716,1754664654985,-1759.0,0.00031683,7]
[378004717,1754664654995,-1759.0,0.00031683,7]
[378004718,1754664655004,-1807.27114986,0.00031683,7]
[378004719,1754664655013,-325.0,0.00031683,7]
[378004720,1754664655022,-325.0,0.00031683,7]
[378004721,1754664655031,-325.0,0.00031683,7]
[378004722,1754664655040,-325.0,0.00031683,7]
[378004723,1754664655049,-325.0,0.00031683,7]
[378004724,1754664655058,-325.0,0.00031683,7]
[378004725,1754664655067,-325.0,0.00031683,7]
[378004726,1754664655076,-325.0,0.00031683,7]
[378004727,1754664655085,-300.03961285,0.00031683,7]
[378004728,1754664655094,-360521.01732097,0.00031684,20]
[378004729,1754664655163,-1341.64666871,0.00031684,20]
[378004730,1754664655724,-1020.55924771,0.00031684,20]
[378004731,1754664655778,-151.0,0.0002524,2]
[378004732,1754664655788,-151.0,0.0002524,2]
[378004733,1754664655797,-737.66493114,0.000296,7]
[378004734,1754664655808,-262.33506886,0.000296,7]
[378004735,1754664655817,-1000.0,0.000301,7]
[378004736,1754664655826,-1000.0,0.000306,7]
[378004737,1754664655835,-1000.0,0.000311,7]
[378004738,1754664655845,-1000.0,0.000316,7]
[378004739,1754664655854,-735.04964314,0.00031684,20]
[378004740,1754664655865,-12835.0907694,0.00031684,20]
[378004753,1754665106565,244.535,0.00031643,120]
[378004754,1754665119966,1715.18324811,0.00022,2]
[378004755,1754665124285,4178.0,0.00031643,30]
[378004760,1754665157845,2428.22717188,0.000199,2]
[378004762,1754665158048,2428.22717181,0.00021655,2]
[378004763,1754665158132,2428.22717181,0.00023409,2]
[378004767,1754665193907,801.0,0.00030137,120]
[378004772,1754665358398,2608.1881986,0.000199,2]
[378004773,1754665358493,2608.18819831,0.00021655,2]
[378004774,1754665358649,2608.18819831,0.00023409,2]
[378004850,1754665833173,-460.0,0.00024657,2]
[378004899,1754665833686,-460.0,0.00024657,2]
[378004901,1754665833696,-348.95062778,0.00024657,2]
[378004902,1754665833706,-460.0,0.00024657,2]
[378004904,1754665833715,-160.0,0.00024925,2]
[378004906,1754665833725,-842.78739015,0.00024925,2]
[378004908,1754665833735,-160.0,0.00024926,2]
[378004909,1754665833744,-300.0,0.00024929,2]
[378004911,1754665833754,-444.00892982,0.0002493,2]
[378004913,1754665833764,-460.0,0.00024931,2]
[378004915,1754665833775,-150.0,0.00025074,2]
[378004917,1754665833784,-276.13309762,0.00025154,2]
[378004918,1754665833794,-500.0,0.00025154,2]
[378004920,1754665833804,-448.59942722,0.00025154,2]
[378004922,1754665833814,-500.0,0.00025154,2]
[378004924,1754665833824,-625.19599314,0.00025154,2]
[378004926,1754665833834,-323.83115425,0.00025154,2]
[378004927,1754665833843,-598.1,0.00025154,2]
[378004929,1754665833853,-32992.42575842,0.00025155,2]
[378004931,1754665833862,-460.0,0.00025205,2]
[378004933,1754665833871,-187.70547356,0.0002524,2]
[378004934,1754665833880,-151.0,0.00025269,7]
[378004936,1754665833890,-151.0,0.000253,7]
[378004938,1754665833900,-152.506121,0.000253,7]
[378004940,1754665833909,-151.0,0.00025353,7]
[378004942,1754665833918,-151.0,0.00025369,7]
[378004943,1754665833927,-152.506121,0.00025369,7]
[378004945,1754665833937,-151.0,0.00025369,7]
[378004947,1754665833947,-598.1,0.00025428,2]
[378004949,1754665833956,-460.0,0.00025479,2]
[378004950,1754665833965,-151.0,0.00025491,2]
[378004952,1754665833975,-151.0,0.00025491,2]
[378004954,1754665833984,-151.0,0.00025491,2]
[378004956,1754665833993,-151.0,0.00025491,2]
[378004957,1754665834002,-151.0,0.00025491,2]
[378004959,1754665834012,-151.0,0.00025491,2]
[378004961,1754665834022,-151.0,0.00025491,2]
[378004963,1754665834032,-151.0,0.00025491,2]
[378004965,1754665834042,-151.0,0.00025491,2]
[378004966,1754665834052,-151.0,0.00025491,2]
[378004968,1754665834061,-151.0,0.00025491,2]
[378004970,1754665834070,-151.0,0.00025491,2]
[378004972,1754665834080,-4150.0,0.000255,5]
[378004974,1754665834090,-500.0,0.00025678,2]
[378004975,1754665834099,-598.1,0.00025702,2]
[378004977,1754665834108,-556.82018342,0.00025725,2]
[378004979,1754665834118,-152.506121,0.00025743,7]
[378004981,1754665834127,-151.122506,0.00025752,7]
[378004982,1754665834137,-151.0,0.00025753,7]
[378004984,1754665834146,-460.0,0.00025753,2]
[378004986,1754665834155,-151.0,0.00025872,7]
[378004988,1754665834165,-200.0,0.00025889,15]
[378004989,1754665834174,-300.0,0.00025889,15]
[378004991,1754665834184,-152.506121,0.000259,7]
[378004993,1754665834193,-152.506121,0.0002591,7]
[378004995,1754665834203,-151.0,0.0002591,7]
[378004997,1754665834212,-166.132,0.00025947,11]
[378004998,1754665834221,-152.506121,0.00025973,7]
[378005000,1754665834230,-151.0,0.00025973,7]
[378005002,1754665834239,-193.685424,0.00025973,7]
[378005004,1754665834248,-598.1,0.00025976,2]
[378005006,1754665834257,-152.506121,0.0002599,7]
[378005007,1754665834266,-151.0,0.0002599,7]
[378005009,1754665834279,-152.506121,0.00026,7]
[378005011,1754665834288,-152.506121,0.00026,7]
[378005014,1754665834308,-152.506121,0.00026,7]
[378005016,1754665834318,-152.506121,0.00026,7]
[378005017,1754665834327,-152.506121,0.00026,7]
[378005019,1754665834336,-152.506121,0.00026,7]
[378005021,1754665834345,-151.0,0.00026,7]
[378005023,1754665834354,-151.0,0.00026,7]
[378005025,1754665834364,-151.0,0.00026,7]
[378005027,1754665834373,-416.27487324,0.00026027,2]
[378005028,1754665834382,-500.0,0.00026068,2]
[378005030,1754665834392,-598.1,0.0002625,2]
[378005032,1754665834401,-598.1,0.00026524,2]
[378005034,1754665834411,-500.0,0.00026616,2]
[378005036,1754665834420,-500.0,0.00026789,2]
[378005037,1754665834429,-598.1,0.00026798,2]
[378005039,1754665834439,-408.0,0.00026816,2]
[378005041,1754665834448,-414.462,0.00026816,2]
[378005043,1754665834458,-2149.0,0.00026958,2]
[378005045,1754665834467,-971.0,0.00026958,2]
[378005047,1754665834477,-636.0,0.00026958,2]
[378005049,1754665834487,-420.0,0.00027008,2]
[378005050,1754665834496,-598.1,0.00027072,2]
[378005052,1754665834505,-598.1,0.00027346,2]
[378005054,1754665834514,-150.0,0.00027361,2]
[378005056,1754665834526,-598.1,0.0002762,2]
[378005058,1754665834535,-500.0,0.00027777,2]
[378005059,1754665834544,-598.1,0.00027894,2]
[378005061,1754665834554,-527.68033864,0.00028,3]
[378005063,1754665834564,-312.16666667,0.00028,3]
[378005065,1754665834573,-312.16666667,0.00028,3]
[378005067,1754665834583,-216.5651299,0.00028,3]
[378005069,1754665834592,-813.632,0.00028073,2]
[378005070,1754665834602,-2200.0,0.00028073,2]
[378005072,1754665834611,-598.1,0.00028168,2]
[378005074,1754665834621,-200.0,0.00028394,15]
[378005076,1754665834634,-200.0,0.00028394,15]
[378005078,1754665834644,-300.0,0.00028394,15]
[378005080,1754665834654,-598.1,0.00028442,2]
[378005081,1754665834663,-349.23305075,0.00028443,5]
[378005083,1754665834674,-500.0,0.00028443,5]
[378005085,1754665834684,-200.0,0.0002853,21]
[378005087,1754665834693,-900.0,0.00028624,7]
[378005089,1754665834704,-361.46120743,0.00028639,2]
[378005091,1754665834713,-500.0,0.00028639,2]
[378005093,1754665834723,-421.73150981,0.00028639,2]
[378005094,1754665834732,-5873.28,0.0002864,2]
[378005096,1754665834742,-16642.06901849,0.0002864,2]
[378005362,1754665838436,-151.0,0.0002864,2]
[378005364,1754665838446,-13559.28878942,0.0002864,2]
[378005514,1754665840588,-1936.33032476,0.0002864,2]
[378005775,1754665843539,-24476.42411742,0.0002864,2]
[378006083,1754665846660,-541.7393955,0.0002864,2]
[378010085,1754666695588,2347.45294348,0.000199,2]
[378010086,1754666696129,2347.45294326,0.00021655,2]
[378010087,1754666696165,2347.45294326,0.00023409,2]
[378010113,1754666864319,3087.05,0.00030137,120]
[378010114,1754666868889,197.29735642,0.00031644,30]
[378010116,1754666913140,1091.6228981,0.000199,2]
[378010117,1754666913253,1091.62289799,0.00021655,2]
[378010118,1754666913534,1091.62289799,0.00023409,2]
[378010259,1754667033352,-663.75236169,0.00024598,2]
[378010261,1754667033362,-150.0,0.000246,2]
[378010263,1754667033372,-268.91130806,0.00024673,2]
[378010680,1754667038618,-231.08869194,0.00024673,2]
[378010682,1754667038628,-300.0,0.00024694,2]
[378010684,1754667038637,-300.0,0.00024694,2]
[378010686,1754667038646,-300.0,0.00024694,2]
[378010688,1754667038656,-300.0,0.00024694,2]
[378010690,1754667038665,-230.0,0.00024694,2]
[378010692,1754667038675,-462.74342806,0.00024694,2]
[378010694,1754667038687,-737.25657194,0.00024694,2]
[378010696,1754667038696,-500.0,0.00024695,2]
[378010699,1754667038709,-500.0,0.00024695,2]
[378010701,1754667038718,-500.0,0.00024695,2]
[378010703,1754667038728,-500.0,0.00024695,2]
[378010705,1754667038737,-263.07202433,0.00024695,2]
[378010707,1754667038747,-500.0,0.00024695,2]
[378010709,1754667038757,-500.0,0.00024695,2]
[378010711,1754667038766,-500.0,0.00024695,2]
[378010713,1754667038776,-500.0,0.00024695,2]
[378010715,1754667038789,-500.0,0.00024695,2]
[378010717,1754667038798,-500.0,0.00024695,2]
[378010719,1754667038807,-500.0,0.00024695,2]
[378010721,1754667038817,-500.0,0.00024695,2]
[378010723,1754667038827,-500.0,0.00024695,2]
[378010725,1754667038836,-500.0,0.00024695,2]
[378010727,1754667038846,-29825.78325129,0.00024696,2]
[378010729,1754667038858,-11979.00527922,0.00024696,2]
[378011041,1754667043915,-160.0,0.00024698,2]
[378011043,1754667043924,-460.0,0.00024698,2]
[378011045,1754667043934,-460.0,0.00024698,2]
[378011046,1754667043944,-460.0,0.00024698,2]
[378011048,1754667043954,-5450.78753371,0.00024698,2]
[378011168,1754667046709,-7212.62385638,0.00024698,2]
[378011170,1754667046719,-355.16327049,0.00024699,2]
[378011172,1754667046728,-173.29166725,0.00024699,2]
[378011174,1754667046738,-842.78739015,0.000247,2]
[378011176,1754667046747,-460.0,0.00024972,2]
[378011178,1754667046759,-167.24824293,0.00024972,2]
[378012038,1754667096490,977.36020165,0.000199,2]
[378012039,1754667096687,977.3602016,0.00021655,2]
[378012040,1754667096785,977.3602016,0.00023409,2]
[378012295,1754667283619,963.54900291,0.000199,2]
[378012296,1754667283707,963.54900285,0.00021655,2]
[378012297,1754667283811,963.54900285,0.00023409,2]
[378012338,1754667509297,867.19410271,0.000199,2]
[378012339,1754667509401,867.19410256,0.00021655,2]
[378012340,1754667509501,867.19410256,0.00023409,2]
[378012361,1754667725026,772.06456003,0.000199,2]
[378012362,1754667725154,772.06455991,0.00021655,2]
[378012363,1754667725263,772.06455991,0.00023409,2]
[378012408,1754667922595,690.40841106,0.000199,2]
[378012409,1754667922694,690.40841097,0.00021655,2]
[378012410,1754667922803,690.40841097,0.00023409,2]
[378012416,1754667974620,2431.71,0.00022,2]
[378012417,1754667991265,400.30656,0.00031645,120]
[378012427,1754668132738,616.96237008,0.000199,2]
[378012428,1754668132820,616.96236987,0.00021655,2]
[378012429,1754668132911,616.96236987,0.00023409,2]
[378012645,1754668238307,-160.0,0.0002469,2]
[378012647,1754668238324,-300.0,0.00024694,2]
[378012649,1754668238334,-160.0,0.00024694,2]
[378012651,1754668238344,-460.0,0.00024695,2]
[378012653,1754668238358,-170.0000102,0.00024695,2]
[378012658,1754668238371,-289.9999898,0.00024695,2]
[378012661,1754668238380,-460.0,0.00024695,2]
[378012663,1754668238389,-460.0,0.00024695,2]
[378012666,1754668238400,-460.0,0.00024695,2]
[378012668,1754668238409,-417.78963045,0.00024695,2]
[378012670,1754668238422,-138.59625939,0.00024695,2]
[378012672,1754668238433,-460.0,0.00024695,2]
[378012674,1754668238443,-189.08630784,0.00024695,2]
[378012676,1754668238453,-460.0,0.00024695,2]
[378012678,1754668238462,-460.0,0.00024695,2]
[378012680,1754668238472,-460.0,0.00024695,2]
[378012682,1754668238481,-460.0,0.00024695,2]
[378012684,1754668238491,-460.0,0.00024695,2]
[378012686,1754668238500,-460.0,0.00024698,2]
[378012688,1754668238510,-460.0,0.00024699,2]
[378012690,1754668238520,-460.0,0.00024699,2]
[378012692,1754668238529,-418.8971703,0.00024699,2]
[378012694,1754668238538,-460.0,0.00024699,2]
[378012696,1754668238548,-181.30776228,0.000247,2]
[378012698,1754668238558,-460.0,0.00024969,2]
[378012700,1754668238567,-460.0,0.00024969,2]
[378012702,1754668238576,-460.0,0.00024969,2]
[378012704,1754668238585,-292.75175707,0.00024969,2]
[378012706,1754668238595,-460.0,0.00024969,2]
[378012708,1754668238604,-299.528462,0.00024969,2]
[378012710,1754668238614,-460.0,0.00024972,2]
[378012712,1754668238624,-460.0,0.00024973,2]
[378012714,1754668238633,-301.90726009,0.00025053,2]
[378012716,1754668238642,-150.0,0.00025071,2]
[378012718,1754668238652,-460.0,0.00025085,2]
[378012721,1754668238670,-160.0,0.00025142,2]
[378012724,1754668238683,-580.78331647,0.00025142,2]
[378012726,1754668238692,-464.72705764,0.00025153,2]
[378012728,1754668238702,-460.0,0.00025153,2]
[378012730,1754668238712,-460.0,0.00025154,2]
[378012732,1754668238722,-460.0,0.00025154,2]
[378012734,1754668238731,-460.0,0.00025163,2]
[378012736,1754668238741,-460.0,0.00025163,2]
[378012738,1754668238750,-460.0,0.00025163,2]
[378012740,1754668238761,-616.96236987,0.00025164,2]
[378012742,1754668238770,-218.93683325,0.0002522,2]
[378012744,1754668238779,-460.0,0.00025221,2]
[378012746,1754668238789,-500.0,0.00025241,2]
[378012748,1754668238798,-191.98236594,0.00025241,2]
[378012750,1754668238807,-497.47441193,0.00025241,2]
[378012752,1754668238817,-500.0,0.00025241,2]
[378012754,1754668238827,-500.0,0.00025241,2]
[378012756,1754668238836,-368.76605092,0.00025241,2]
[378012758,1754668238846,-460.0,0.00025242,2]
[378012760,1754668238856,-6222.17,0.00025242,2]
[378012762,1754668238865,-6222.17,0.00025242,2]
[378012764,1754668238875,-1583.95261501,0.00025242,2]
[378012766,1754668238889,-500.0,0.00025242,2]
[378012847,1754668239504,-500.59501,0.00025242,2]
[378012851,1754668239517,-552.3362467,0.00025242,2]
[378012938,1754668239948,-3085.28612829,0.00025242,2]
[378012940,1754668239958,-980.83892744,0.00025242,2]
[378013210,1754668244890,-2710.17600123,0.00025242,2]
[378013212,1754668244902,-2531.15507133,0.00025242,2]
[378013214,1754668244911,-6222.17,0.00025242,2]
[378013216,1754668244921,-6222.17,0.00025242,2]
[378013218,1754668244930,-6222.17,0.00025242,2]
[378013220,1754668244939,-460.0,0.00025242,2]
[378013222,1754668244950,-460.0,0.00025243,2]
[378013224,1754668244960,-460.0,0.00025243,2]
[378013226,1754668244969,-497.58223768,0.00025243,2]
[378013229,1754668244979,-460.0,0.00025243,2]
[378013230,1754668244988,-460.0,0.00025246,2]
[378013233,1754668244998,-598.14408535,0.00025246,2]
[378013234,1754668245007,-460.0,0.00025247,2]
[378013236,1754668245017,-6222.17,0.00025298,2]
[378013238,1754668245026,-6222.17,0.00025332,2]
[378013241,1754668245035,-6222.17,0.00025332,2]
[378013244,1754668245045,-460.0,0.00025359,2]
[378013247,1754668245055,-6222.17,0.00025372,2]
[378013250,1754668245064,-212.72156171,0.00025381,2]
[378013254,1754668245074,-460.0,0.00025428,2]
[378013257,1754668245083,-460.0,0.00025428,2]
[378013260,1754668245092,-460.0,0.00025437,2]
[378013261,1754668245102,-460.0,0.00025437,2]
[378013265,1754668245111,-428.88,0.00025443,10]
[378013268,1754668245120,-357.4,0.00025443,10]
[378013270,1754668245130,-297.84,0.00025443,10]
[378013272,1754668245139,-248.2,0.00025443,10]
[378013274,1754668245148,-10391.5735563,0.00025452,2]
[378013278,1754668245157,-301.15867786,0.00025462,2]
[378013281,1754668245167,-500.0,0.00025462,2]
[378013284,1754668245176,-216.69734241,0.00025462,2]
[378013287,1754668245186,-146630.864911,0.00025463,2]
[378013289,1754668245195,-611.66654904,0.00025473,2]
[378013292,1754668245204,-500.98868041,0.00025473,2]
[378013295,1754668245214,-151.0,0.00025491,2]
[378013299,1754668245222,-600.0,0.00025491,2]
[378013301,1754668245232,-151.0,0.00025491,2]
[378013303,1754668245241,-151.0,0.00025491,2]
[378013305,1754668245251,-151.0,0.00025491,2]
[378013306,1754668245260,-151.0,0.00025491,2]
[378013308,1754668245270,-151.0,0.00025491,2]
[378013310,1754668245279,-151.0,0.00025491,2]
[378013312,1754668245289,-151.0,0.00025491,2]
[378013314,1754668245299,-250.0,0.00025491,2]
[378013316,1754668245311,-250.0,0.00025491,2]
[378013318,1754668245320,-250.0,0.00025491,2]
[378013320,1754668245330,-250.0,0.00025491,2]
[378013322,1754668245340,-151.0,0.00025491,2]
[378013324,1754668245352,-151.0,0.00025491,2]
[378013326,1754668245362,-151.0,0.00025491,2]
[378013328,1754668245371,-460.0,0.00025495,2]
[378013330,1754668245381,-5628.56,0.00025516,2]
[378013332,1754668245390,-460.0,0.00025516,2]
[378013334,1754668245402,-462.18231419,0.00025517,2]
[378013336,1754668245411,-460.0,0.00025517,2]
[378013337,1754668245420,-460.0,0.00025517,2]
[378013338,1754668245431,-460.0,0.00025519,2]
[378013339,1754668245441,-460.0,0.00025521,2]
[378013340,1754668245450,-475.99107018,0.00025633,2]
[378013341,1754668245461,-6222.17,0.00025701,2]
[378013342,1754668245470,-460.0,0.00025702,2]
[378013343,1754668245479,-460.0,0.00025702,2]
[378013344,1754668245489,-460.0,0.00025711,2]
[378013345,1754668245502,-460.0,0.00025769,2]
[378013346,1754668245511,-264.37,0.0002579,2]
[378013347,1754668245520,-460.0,0.00025791,2]
[378013348,1754668245531,-460.0,0.00025793,2]
[378013349,1754668245540,-200.0,0.00025929,15]
[378013350,1754668245550,-300.0,0.00025929,15]
[378013351,1754668245561,-166.132,0.00025949,11]
[378013352,1754668245570,-460.0,0.00025985,2]
[378013353,1754668245579,-587.34000014,0.00026043,2]
[378013354,1754668245588,-580.78331643,0.00026057,2]
[378013355,1754668245598,-460.0,0.00026065,2]
[378013356,1754668245607,-460.0,0.00026067,2]
[378013357,1754668245616,-160.0,0.00026125,2]
[378013358,1754668245625,-460.0,0.00026259,2]
[378013359,1754668245637,-460.0,0.00026339,2]
[378013360,1754668245647,-460.0,0.00026341,2]
[378013361,1754668245658,-377.44,0.00026463,2]